Cogmind - Beta 16 --- EXPLORER MODE // 2025.12.15 @ 08:22:42 Player: K.K.Y. Result: Destroyed by CX-OHS(R) with Subdweller Machine Gun Performance ------------- Evolutions (0) 0 Regions Visited (3) 600 Robots Destroyed (47) 235 Value Destroyed (938) 938 Prototype IDs (0) 0 Alien Tech Used (0) 0 Bonus (0) 0 TOTAL SCORE: 1773 Bonus ------- None Cogmind --------- Core Integrity 0/250 Matter 281/300 Energy 160/160 System Corruption 2% Temperature Cool (0) Movement Rolling (110) Location -10/Subcaves Parts ------- > --- POWER (1) -------- Light Nuclear Core > --- PROPULSION (3) --- Subdweller Monowheel Subdweller Monowheel Subdweller Monowheel > --- UTILITY (2) ------ Medium Storage Unit Weight Redist. System > --- WEAPON (2) ------- Particle Gun Battle Rifle > --- INVENTORY (10) --- Subdweller Monowheel Small Storage Unit Structural Scanner Machine Analyzer Riot Gun Peak State ------------ > --- POWER ------------ Light Nuclear Core > --- PROPULSION ------- Subdweller Monowheel Subdweller Monowheel Subdweller Monowheel > --- UTILITY ---------- Medium Storage Unit Weight Redist. System > --- WEAPON ----------- Particle Gun Battle Rifle > --- INVENTORY -------- Subdweller Monowheel Small Storage Unit Structural Scanner Machine Analyzer Riot Gun [Rating: 17] Favorites ----------- Power Ion Engine Engine Ion Engine Power Core Light Nuclear Core Propulsion Flight Unit Wheel Wheel Flight Unit Flight Unit Utility Weight Redist. System Device Weight Redist. System Storage Medium Storage Unit Processor Targeting Computer Weapon Beam Cannon Energy Gun Small Laser Energy Cannon Beam Cannon Ballistic Gun Battle Rifle Ballistic Cannon Battle Cannon Special Weapon Mining Laser Build | -11 -10 -10 -10 ------- Run | Yrd Mat Min Sub Slots Evolved 1 | . 1 . . Power . | . . . . Propulsion 1 | . 1 . . Utility . | . . . . Weapon . | . . . . Parts Attached 39 | 7 5 11 16 Power 7 | 1 . 2 4 Engine 6 | 1 . 2 3 Core 1 | . . . 1 Reactor . | . . . . Propulsion 17 | 2 2 8 5 Treads . | . . . . Leg . | . . . . Wheel 11 | 2 1 5 3 Hover . | . . . . Flight 6 | . 1 3 2 Utility 6 | 2 1 1 2 Device 4 | 1 1 1 1 Storage 1 | . . . 1 Processor 1 | 1 . . . Hackware . | . . . . Protection . | . . . . Artifact . | . . . . Weapon 9 | 2 2 . 5 Energy Gun 3 | 2 . . 1 Energy Cannon 2 | . 2 . . Ballistic Gun 1 | . . . 1 Ballistic Cannon 1 | . . . 1 Launcher . | . . . . Special Weapon 2 | . . . 2 Impact Weapon . | . . . . Slashing Weapon . | . . . . Piercing Weapon . | . . . . Special Melee Weapon . | . . . . Unidentified Prototypes . | . . . . Parts Lost 12 | . 1 1 10 Power 1 | . . . 1 Propulsion 5 | . 1 1 3 Utility 1 | . . . 1 Weapon 5 | . . . 5 Highest Loss Streak 4 | . 1 1 4 To Critical Strikes . | . . . . Average Backups 4 | . 4 5 4 Power . | . . . . Propulsion . | . . . . Utility 3 | . 2 3 3 Weapon 1 | . 1 1 . Tool/Special . | . . . . Unused Backups 4 | . . 1 3 Power . | . . . . Propulsion 1 | . . . 1 Utility 3 | . . 1 2 Weapon . | . . . . Tool/Special . | . . . . Average Slot Usage (%) 80 | . 79 88 76 Engine 10 | . 12 12 8 Wheel 9 | . 7 11 9 Flight 13 | . 9 14 18 Device 21 | . 20 25 20 Storage 1 | . . . 3 Processor 1 | . 3 . . Energy Gun 2 | . 6 . . Energy Cannon 16 | . 18 25 7 Ballistic Gun 1 | . . . 3 Peak Build Rating 17 | 7 8 12 17 Average Rating 8 | 4 7 9 10 On Entrance 6 | . 7 7 12 Avg Prop Armor Cover (%) 6 | . . 6 . Naked Turns . | . . . . Heaviest Build 20 | 9 12 12 20 Greatest Support 66 | 20 30 48 66 Greatest Overweight (x) 2 | 2 2 1 1 Average Overweight (x) . | . . . . Largest Inventory Capacity 10 | 5 5 5 10 Average Capacity 5 | 5 5 5 6 Most Carried 6 | 4 5 5 6 Average Carried 4 | 1 4 4 4 Final Capacity 10 | 5 5 5 10 Final Carried 5 | 3 5 5 5 Class Distribution -------------------- 62% | Hacker-Mutant 37% | Scavenger-Mutant Dominant Class ---------------- Hacker-Mutant | -10/Materials Scavenger-Mutant | -10/Mines Scavenger-Mutant | -10/Subcaves Resources | -11 -10 -10 -10 ----------- Run | Yrd Mat Min Sub Matter Collected 787 | 270 100 156 261 Remotely . | . . . . Salvage Created 1676 | 143 584 547 402 Parts 96 | 9 31 32 24 Haulers Intercepted 2 | . 2 . . Recyclers Shooed 2 | . 1 1 . Parts Field Recycled . | . . . . Retrieved Matter . | . . . . Parts Self-Destructed . | . . . . Prevented . | . . . . Parts Restored . | . . . . Kills | -11 -10 -10 -10 ------- Run | Yrd Mat Min Sub Combat Hostiles Destroyed 26 | . 10 4 12 Guns 6 | . 4 . 2 Cannons 20 | . 6 4 10 Classes Destroyed 13 | 2 6 1 4 Worker 3 | . 1 2 . Builder 1 | . . 1 . Tunneler 4 | 2 . 2 . Hauler 2 | . 2 . . Recycler 7 | 1 2 4 . Mechanic 1 | . 1 . . Turret 2 | . . . 2 Watcher 1 | . 1 . . Swarmer 9 | . 4 2 3 Grunt 9 | . 6 2 1 Sentry 1 | . . . 1 Artisan 2 | . . . 2 Subdweller 7 | . . . 7 Best Kill Streak 5 | 2 3 3 5 Combat Bots Only 3 | . 3 2 3 Max Kills in Single Turn 2 | 1 1 2 1 Gunslinging . | . . . . Exploded . | . . . . Melee . | . . . . Uniques/NPCs Destroyed . | . . . . Combat | -11 -10 -10 -10 -------- Run | Yrd Mat Min Sub Hostile Shots Fired 200 | . 42 15 143 Missed 83 | . 12 3 68 Hits 117 | . 30 12 75 Projectile 117 | . 30 12 75 Critical Strikes 3 | . . . 3 Damage Taken 940 | . 175 91 674 Core 258 | . 57 16 185 Absorbed by Shields . | . . . . Ignored by Resistances 608 | . 121 57 430 Core Remaining (%) 100 | 100 . . . Volleys Fired 149 | 8 46 25 70 Largest 2 | 2 2 2 2 Hottest 160 | 80 120 120 160 Shots Fired 235 | 16 65 50 104 Gun 62 | 16 35 . 11 Cannon 153 | . 30 50 73 Launcher . | . . . . Special 20 | . . . 20 Kinetic 13 | . . . 13 Thermal 214 | 8 65 50 91 Explosive . | . . . . Electromagnetic 8 | 8 . . . Robot Hit Streak 51 | 13 10 19 51 Robot Miss Streak 2 | 1 2 1 1 Penetration Max . | . . . . Secondary Targets . | . . . . Shots Hit Robots 178 | 14 49 35 80 Core Hits 62 | 3 22 13 24 Critical Kills . | . . . . Critical Parts Destroyed . | . . . . Critical Strikes 2 | 2 . . . Corrupt 2 | 2 . . . Melee Attacks . | . . . . Impact . | . . . . Slashing . | . . . . Piercing . | . . . . Sneak Attacks . | . . . . Combat Hostiles . | . . . . Follow-up Attacks . | . . . . Damage Inflicted 2616 | 171 673 661 1111 Guns 682 | 171 359 . 152 Cannons 1732 | . 314 661 757 Explosions . | . . . . Melee . | . . . . Ramming 8 | . . . 8 Kinetic 194 | . . . 194 Thermal 2322 | 79 673 661 909 Explosive . | . . . . Electromagnetic 92 | 92 . . . Impact . | . . . . Slashing . | . . . . Piercing . | . . . . Highest Corruption 2 | . 2 2 2 Average Corruption 1 | . 1 2 2 Corruption Purged . | . . . . Corruption Blocked . | . . . . Effects 25 | . 5 7 13 Message Errors 7 | . 3 2 2 Matter Fused 7 | . 1 3 3 Heat Flow Errors 1 | . . . 1 Energy Discharges 3 | . 1 . 2 Parts Rejected 1 | . . . 1 Parts Fused 1 | . . . 1 Data Loss (minor) 3 | . . 2 1 Misfires 1 | . . . 1 Weapon Failures 1 | . . . 1 Overload Shots . | . . . . Overflow Damage 42 | . 11 21 10 Projectiles 42 | . 11 21 10 Explosions . | . . . . Melee . | . . . . Knockbacks 2 | . . . 2 Impact . | . . . . Kinetic 2 | . . . 2 Secondary . | . . . . Self-Inflicted Damage 3 | . . . 3 Shots . | . . . . Rammed 2 | . . . 2 Targets Rammed 2 | . . . 2 Kicked . | . . . . Crushed . | . . . . Highest Temperature 482 | 36 258 482 181 Average Temperature 84 | 16 88 108 60 Received Heat Transfer 685 | . 69 72 544 Effects 1 | . . 1 . Damage (minor) 1 | . . 1 . Siege Activations . | . . . . Martial Activations . | . . . . Shielding Activations . | . . . . Robots Disrupted . | . . . . Combat Hostiles . | . . . . Robots Corrupted . | . . . . Combat Hostiles . | . . . . Parts Fried . | . . . . Impact Corruptions . | . . . . Robots Melted . | . . . . Combat Hostiles . | . . . . Parts Melted 6 | . 3 2 1 Heat Transferred 5074 | 175 1466 1406 2027 Parts Sabotaged . | . . . . Parts Stolen . | . . . . Parts Stripped . | . . . . Power Chain Reactions . | . . . . Alert | -11 -10 -10 -10 ------- Run | Yrd Mat Min Sub Maximum Alert Level . | . . . . Low Security (%) 100 | 100 100 100 . Level 1 . | . . . . Level 2 . | . . . . Level 3 . | . . . . Level 4 . | . . . . Level 5 . | . . . . High Security . | . . . . Max Security . | . . . . Peak Influence 109 | 5 109 40 . Initial . | . . . . Average 14 | . 24 5 . Influence Increases 669 | 15 294 145 215 Destroy 0b10 Robot/C 420 | . 200 80 140 Destroy 0b10 Robot/NC 95 | 15 35 45 . Destroy Leader 66 | . 46 20 . Successful Hack 3 | . 3 . . Disable Machine 8 | . 8 . . Destroy Structure 2 | . 2 . . Lose Combat Pursuer 75 | . . . 75 Influence Decreases 669 | 15 294 145 215 Time Decay 589 | 15 284 145 145 Lost Part 40 | . 10 . 30 Lost Ally 40 | . . . 40 Squads Dispatched 1 | . 1 . . Investigation 1 | . 1 . . Extermination . | . . . . Reinforcement . | . . . . Assault . | . . . . Garrison . | . . . . Intercept . | . . . . Searches Triggered . | . . . . Construction Impeded . | . . . . Haulers Reinforced . | . . . . Active Scanning Responses . | . . . . Cargo Convoy Interrupts . | . . . . Stealth | -11 -10 -10 -10 --------- Run | Yrd Mat Min Sub Distress Signals 2 | . 2 . . Communications Jammed . | . . . . Distress Signals . | . . . . Times Spotted 49 | . 21 4 24 Peak Tracking Total 6 | . 5 2 6 Tactical Retreats 4 | . . . 4 Traps | -11 -10 -10 -10 ------- Run | Yrd Mat Min Sub Traps Triggered 4 | . 4 . . Indirectly . | . . . . Trap Hack Attempts . | . . . . Triggered . | . . . . Disarmed . | . . . . Reprogrammed . | . . . . Reused . | . . . . Traps Extracted . | . . . . Installed . | . . . . Triggered . | . . . . Machines | -11 -10 -10 -10 ---------- Run | Yrd Mat Min Sub Machines Disabled 3 | . 2 . 1 Max in Single Turn 1 | . 1 . 1 Machines Repaired . | . . . . Machines Dismantled . | . . . . Machines Sabotaged . | . . . . Overloaded Fab Kills . | . . . . Hacking | -11 -10 -10 -10 --------- Run | Yrd Mat Min Sub Machines Accessed 7 | . 5 . 2 Terminals 3 | . 3 . . Fabricators . | . . . . Repair Stations . | . . . . Recycling Units 2 | . 2 . . Scanalyzers . | . . . . Garrison Access . | . . . . Total Hacks 15 | . 10 . 5 Successful 12 | . 7 . 5 Failed 3 | . 3 . . Catastrophic . | . . . . Database Lockouts . | . . . . Manual 1 | . 1 . . Terminals 6 | . 6 . . Fabricators . | . . . . Repair Stations . | . . . . Recycling Units 4 | . 4 . . Scanalyzers . | . . . . Garrison Access . | . . . . Terminal Hacks 8 | . 3 . 5 Record 4 | . . . 4 Robot Analysis 1 | . 1 . . Open Door 1 | . . . 1 Hauler Manifests 1 | . 1 . . Zone Layout 1 | . 1 . . Fabricator Hacks . | . . . . Repair Station Hacks . | . . . . Recycling Unit Hacks 3 | . 3 . . Retrieve Components 3 | . 3 . . Scanalyzer . | . . . . Garrison Access Hacks . | . . . . Unauthorized Hacks 1 | . 1 . . Terminals 1 | . 1 . . Botnet 1 | . 1 . . Fabricators . | . . . . Repair Stations . | . . . . Recycling Units . | . . . . Scanalyzers . | . . . . Garrison Access . | . . . . Data Cores Recovered . | . . . . Used . | . . . . Hacking Detections 3 | . 3 . . Full Trace Events 1 | . 1 . . Feedback Events 1 | . 1 . . Corruption 1 | . 1 . . Feedback Blocked . | . . . . Robot Schematics Acquired . | . . . . Robots Built . | . . . . Authchips . | . . . . Time . | . . . . Total Robot Build Rating . | . . . . Part Schematics Acquired . | . . . . Parts Built . | . . . . Authchips . | . . . . Time . | . . . . Total Part Build Rating . | . . . . Part Studies Acquired . | . . . . Parts Repaired . | . . . . Time . | . . . . Parts Recycled . | . . . . Recycled Matter . | . . . . Retrieved Matter . | . . . . Retrieved Components 4 | . 4 . . Parts Scanalyzed . | . . . . Part Schematics Acquired . | . . . . Parts Damaged . | . . . . Bothacking | -11 -10 -10 -10 ------------ Run | Yrd Mat Min Sub Used RIF Installer . | . . . . Robots Hacked . | . . . . Non-combat . | . . . . Combat . | . . . . Robot Hacks Applied . | . . . . Relay Couplers Released . | . . . . Fabnet Peak Effective % . | . . . . Robots Rewired . | . . . . Allies Hacked . | . . . . Hacks Repelled . | . . . . Allies | -11 -10 -10 -10 -------- Run | Yrd Mat Min Sub Total Allies 3 | . . 3 . Largest Group 3 | . . 3 3 Highest-Rated Group 40 | . . 40 40 Highest-Rated Ally 16 | . . 16 16 Total Orders . | . . . . Ally Attacks 4 | . . . 4 Total Damage 21 | . . . 21 Kills . | . . . . Allies Corrupted . | . . . . Allies Melted . | . . . . Intel | -11 -10 -10 -10 ------- Run | Yrd Mat Min Sub Active Infowar (turns) 1003 | 103 792 108 . Structural 1003 | 103 792 108 . Robot Analysis Total 1 | . 1 . . Derelict Logs Recovered 2 | . . . 2 Drone Launches . | . . . . Drone Recoveries . | . . . . Exploration | -11 -10 -10 -10 ------------- Run | Yrd Mat Min Sub Turns Passed 2249 | 117 792 589 751 Spaces Moved 2074 | 73 629 599 773 Core 369 | 47 2 67 253 Treads . | . . . . Legs . | . . . . Wheels 479 | 26 149 157 147 Hover . | . . . . Flight 1226 | . 478 375 373 Fastest Speed 34 | 50 40 34 34 Average Speed 74 | 104 104 65 54 Slowest Speed 200 | 150 200 120 110 Overloaded Moves . | . . . . Propulsion Burnouts . | . . . . Robots Hopped 1 | . . 1 . Potential Cave-ins . | . . . . Cave-ins Triggered . | . . . . Exploration Rate (%) 56 | 4 86 94 41 Regions Visited 3 Branch Regions 2 Pre-discovered Areas 1 | . . . 1 Known Exits Taken 3 | 1 1 1 . Unknown Exits Taken . | . . . . Scrap Searched 3 | . . . 3 Spaces Dug . | . . . . Terrain Destroyed . | . . . . Melee . | . . . . Projectile . | . . . . AOE . | . . . . Terrain Rammed . | . . . . Walls Destroyed . | . . . . Machines Disabled . | . . . . Actions | -11 -10 -10 -10 --------- Run | Yrd Mat Min Sub Total 2516 | 97 697 749 973 Wait 194 | . 4 100 90 Move 2069 | 72 628 596 773 Hop 1 | . . 1 . Pick Up 28 | 10 4 3 11 Fast Attach 13 | . 8 3 2 Attach 18 | 7 1 . 10 Detach . | . . . . Swap 22 | . 2 11 9 Drop 20 | . 4 10 6 Fire 149 | 8 46 25 70 Melee . | . . . . Ram 2 | . . . 2 Kick . | . . . . Crush . | . . . . Escape Stasis . | . . . . Rewire . | . . . . Trap . | . . . . Miscellaneous . | . . . . Route ------- -11/Scrapyard -10/Materials (discovered 5 exits: *Mat x3 / *Min / Sub) -10/Mines (discovered 3 exits: *Mat x2 / *Sub) -10/Subcaves (discovered 3 exits: Mat x2 / *Rec) History --------- Turn | Location | Event 12 | -11/Scrapyard | Identified exit to Materials 12 | -11/Scrapyard | Discovered exit to Materials (range 16) 118 | -11/Scrapyard | Entered Materials 118 | -10/Materials | Evolved 1 slot: Propulsion x1 143 | -10/Materials | Identified exit to Mines 143 | -10/Materials | Discovered exit to Mines (range 8) 307 | -10/Materials | Build established: Hacker-Mutant 400 | -10/Materials | Identified exit to Materials 400 | -10/Materials | Discovered exit to Materials (range 15) 411 | -10/Materials | Identified exit to Subcaves 411 | -10/Materials | Discovered exit to Subcaves (range 9) 459 | -10/Materials | Discovered exit to Materials (range 16) 806 | -10/Materials | Discovered exit to Materials (range 16) 910 | -10/Materials | Entered Mines 910 | -10/Mines | Discovered exit to Subcaves (range 7) 1032 | -10/Mines | Found a hidden stash of uninstalled traps 1268 | -10/Mines | Discovered exit to Materials (range 5) 1355 | -10/Mines | Deemed a non-threat by the Exiles lab entrance 1367 | -10/Mines | Discovered exit to Materials (range 9) 1395 | -10/Mines | Assisted by bots powering up and referring to "LRC-V3" 1408 | -10/Mines | A weapon hastily lodged in a ceiling crevice suddenly fell to the ground 1430 | -10/Mines | Build established: Scavenger-Mutant 1499 | -10/Mines | Entered Subcaves 1499 | -10/Subcaves | Accompanied by 3 allies 1508 | -10/Subcaves | A swath of the cavern ceiling suddenly collapsed 1565 | -10/Subcaves | Shifting Twisted Machinery released Sub. Power Source 1645 | -10/Subcaves | Identified exit to Recycling 1645 | -10/Subcaves | Discovered exit to Recycling (range 15) 1674 | -10/Subcaves | Learned location of Zion (-6) 1787 | -10/Subcaves | Ambushed by angry Subdweller bent on revenge 1798 | -10/Subcaves | Core integrity fell below 50% 1891 | -10/Subcaves | Lost 4 parts (2n2w) 1937 | -10/Subcaves | Lost 3 parts (1p1n1w) 1952 | -10/Subcaves | Visited Clippyterm 1954 | -10/Subcaves | Identified exit to Materials 1967 | -10/Subcaves | Core integrity fell below 20% 2250 | -10/Subcaves | Destroyed by CX-OHS(R) with Subdweller Machine Gun Last Messages --------------- fused. 02061_ Acquired 45 matter. 02062_ Acquired Med. Storage Unit. 02068_ Acquired Sub. Monowheel. 02073_ Acquired 33 matter. 02076_ Acquired Lgt. Ion Engine. 02077_ Discarded Sub. Power Source. 02079_ Acquired 1 matter. 02081_ Acquired 16 matter. 02151_ System corrupted: Heat flow error (+221). 02184_ Acquired Lgt. Nuclear Core. 02187_ Dropped Lgt. Ion Engine. 02190_ Acquired Particle Gun. 02192_ Acquired 20 matter. 02228_ BU-HRF(R): "ECOKILL!" 02229_ Acquired Riot Gun. 02233_ System corrupted: Sub. Monowheel rejected. 02233_ Acquired Sub. Monowheel. 02242_ BU-HRF(R) destroyed. Map ----- +----------------------------------------------------+ | ???????????????????????????????????????????## | | ????????????????????????????????????????????# | | ??????????????????????????????????????????##### | | ?????????????????????????????????????##??## ### | | ?????????????????????????????????????# ### ### | | ?????????????????????????????????????# ### | | ?????????????????????????????????????## ##?# | | ??????????????????????????????????????### ###??# | | ????????????????????????????????????????# #?#### | | ???????????????????????????????????????## ### | | ???????????????????????????????????????#% | | ???????????????????????????????????????# | | ???????????????????????????????????????## #### | | ????????????????????????????????????????## ###?#" | | ???????????????????#?????????????????????####???#" | | ???????????????????# ???????????????????????????#" | | ???????????????????? ???????????????????????????#" | | ???????????????????? ??????????????????????????#" | | ????????????????????? ###???????????????????????## | | ?????????????????????? #####???????????????????? | | ?????????????????????? #??????????????????## | | ???????????????????????![! #?????????????????## | | ???????????????????????#%= #??????????????#### | | ??????????????????????##& ##???????????### | | ????????????????????### #?????????### # | | ???????????????????## @ #?????????# ## | | ??????????????????## #?????????# ##? | | ???????????????#### " ######????## ##?? | | ???????????????# """ ### #???## #??? | | ???????????????# " ## ##### #### | | ???????????????# # ## # | | ???????????????# ?# | | ??????????????# ""??# ## # | | ??????????????#?????# % # ## ## # | | ???????????????????# ## ## ## # | | ???????????????????#### ### ## ## % ### | | ?????????????????????# #??# ### # #?? | | ?????????????????????## #???# #? # % #?? | | ????????????????????? "R????# #?# ? | | ???????????????????? ##????# #?## ### | | ???????????????????###?????? ??? ####??# | | ??????????????????????????? #?? ##??????### | | ??????????????????????????? ##?? ##?????????? | | ?????????????????????????? #??? #??????????? | | ????????????????????????? #???##??????????? | | ?????????????????????????? ######???????????????? | | ???????????????????????????#?????????????????????? | | ?????????????????????????????????????????????????? | | ?????????????????????????????????????????????????? | | ?????????????????????????????????????????????????? | +----------------------------------------------------+ Best States ------------- Heat Dissipation 39 Energy Generation 15 Energy Capacity 265 Matter Stores 300 Matter Capacity 300 Sight Range 16 Terrain Scan Density 10 Additional Mass Support 6 Resistance: KI 35 Resistance: TH 35 Resistance: EX 35 Resistance: EM 35 Resistance: I 35 Resistance: S 35 Resistance: P 35 Evasion (%) 63 Targeting Accuracy 5 Offensive Hacking 20 Item Schematics ----------------- None Robot Schematics ------------------ None Fabricated ------------ Nothing Repaired ---------- Nothing Studied --------- None Alien Tech Used ----------------- None Achievements -------------- None Challenges ------------ None Game ------ Seed VoltaicAntimissileRefractor Manual? 0 Play Time 00:17:57 Cumulative 196.8 hours Start 2025.12.15 @ 08:05:35 End 2025.12.15 @ 08:22:42 Sessions 1 Manual Loads 0 Difficulty Explorer Special Mode None Game No. 290 Rogue 0 Adventurer 0 Explorer 290 Win Type - Total 0 Types 0/0/0/0/0/0/0/0/0/0 Lore% 71 Gallery% 67 Achievement% 53 Wizard Run 0 Options --------- Layout 1 ASCII 0 Keyboard 0 Movement Mouse Keybinds 0 Fullscreen 1 Font 24/Smallcaps Map View 50x35 Zoom Use 0% Tactical HUD 1 Map Filters NONE Filters NONE Steam 1 RUN: 1c32f236-8a52-4c4b-bddd-2858ecd4cb09